Cogmind - Beta 12 @@@ ROGUE MODE // 2023.10.12 @ 18:24:08 Player: art-hropod Result: Destroyed by as-31235 with Assembled Heavy Rifle Performance ------------- Evolutions (0) 0 Regions Visited (2) 400 Robots Destroyed (8) 40 Value Destroyed (127) 127 Prototype IDs (0) 0 Alien Tech Used (0) 0 Bonus (0) 0 TOTAL SCORE: 567 Bonus ------- None Cogmind --------- Core Integrity 0/250 Matter 285/300 Energy 91/100 System Corruption 0% Temperature Cool (0) Movement Core (150) Ox2 Location -10/Mines Parts ------- > --- POWER (1) -------- (None) > --- PROPULSION (2) --- (None) > --- UTILITY (2) ------ Heat Sink Small Storage Unit > --- WEAPON (2) ------- Grenade Launcher > --- INVENTORY (8) ---- Ion Engine Light Ion Engine Light Ion Engine Aluminum Leg Flight Unit Flight Unit EM Pulse Gun Peak State ------------ > --- POWER ------------ Ion Engine > --- PROPULSION ------- Aluminum Leg Aluminum Leg > --- UTILITY ---------- Small Storage Unit Weight Redist. System > --- WEAPON ----------- Medium Laser Light Assault Rifle > --- INVENTORY -------- Light Ion Engine Light Treads Light Treads Compact Wheel Compact Wheel EM Pulse Gun [Rating: 8] Favorites ----------- Power Ion Engine Engine Ion Engine Propulsion Aluminum Leg Leg Aluminum Leg Utility Small Storage Unit Device Weight Redist. System Storage Small Storage Unit Weapon Medium Laser Energy Gun Medium Laser Ballistic Gun Light Assault Rifle Launcher Grenade Launcher Build | -11 -10 -10 ------- Run | Jun Mat Min Slots Evolved . | . . . Power . | . . . Propulsion . | . . . Utility . | . . . Weapon . | . . . Parts Attached 10 | 6 1 3 Power 1 | 1 . . Engine 1 | 1 . . Core . | . . . Reactor . | . . . Propulsion 3 | 2 . 1 Treads . | . . . Leg 3 | 2 . 1 Wheel . | . . . Hover . | . . . Flight . | . . . Utility 3 | 1 1 1 Device 2 | . 1 1 Storage 1 | 1 . . Processor . | . . . Hackware . | . . . Protection . | . . . Artifact . | . . . Weapon 3 | 2 . 1 Energy Gun 1 | 1 . . Energy Cannon . | . . . Ballistic Gun 1 | 1 . . Ballistic Cannon . | . . . Launcher 1 | . . 1 Special Weapon . | . . . Impact Weapon . | . . . Slashing Weapon . | . . . Piercing Weapon . | . . . Special Melee Weapon . | . . . Unidentified Prototypes . | . . . Parts Lost 5 | . . 5 Power 1 | . . 1 Propulsion 2 | . . 2 Utility . | . . . Weapon 2 | . . 2 Highest Loss Streak 4 | . . 4 To Critical Strikes 1 | . . 1 Average Slot Usage (%) 95 | . 94 95 Engine 11 | . 14 10 Leg 27 | . 28 27 Device 12 | . 8 14 Storage 14 | . 14 14 Energy Gun 14 | . 14 14 Ballistic Gun 13 | . 14 13 Naked Turns . | . . . Heaviest Build 14 | 13 13 14 Greatest Support 26 | 20 26 26 Greatest Overweight (x) 3 | . . 3 Average Overweight (x) . | . . . Largest Inventory Capacity 8 | 8 8 8 Average Capacity 7 | 7 8 8 Most Carried 8 | 6 8 8 Average Carried 7 | 3 7 7 Final Capacity 8 | 8 8 8 Final Carried 8 | 6 8 7 Class Distribution -------------------- 100% | Mutant Dominant Class ---------------- Mutant | -10/Materials Mutant | -10/Mines Resources | -11 -10 -10 ----------- Run | Jun Mat Min Matter Collected 313 | 174 47 92 Remotely . | . . . Salvage Created 238 | . 47 191 Parts 13 | . 4 9 Haulers Intercepted 1 | . 1 . Recyclers Shooed . | . . . Parts Field Recycled . | . . . Retrieved Matter . | . . . Parts Self-Destructed . | . . . Prevented . | . . . Kills | -11 -10 -10 ------- Run | Jun Mat Min Combat Hostiles Destroyed 5 | . . 5 Guns 5 | . . 5 Classes Destroyed 4 | . 1 3 Tunneler 2 | . . 2 Hauler 1 | . 1 . Swarmer 3 | . . 3 Grunt 2 | . . 2 Best Kill Streak 3 | . 1 3 Combat Bots Only 3 | . . 3 Max Kills in Single Turn 1 | . 1 1 Gunslinging . | . . . Exploded . | . . . Melee . | . . . Uniques/NPCs Destroyed . | . . . Combat | -11 -10 -10 -------- Run | Jun Mat Min Damage Taken 791 | . . 791 Core 253 | . . 253 Absorbed by Shields . | . . . Core Remaining (%) 100 | 100 . . Volleys Fired 30 | . 4 26 Largest 2 | . 2 2 Hottest 70 | . 70 70 Shots Fired 57 | . 8 49 Gun 56 | . 8 48 Cannon . | . . . Launcher 1 | . . 1 Special . | . . . Kinetic 27 | . 4 23 Thermal 29 | . 4 25 Explosive 1 | . . 1 Electromagnetic . | . . . Robot Hit Streak 5 | . 4 5 Robot Miss Streak 4 | . 2 4 Penetration Max . | . . . Secondary Targets 2 | . . 2 Max Gunslinging Chain 1 | . . 1 Shots Hit Robots 34 | . 5 29 Core Hits 16 | . 2 14 Critical Kills . | . . . Critical Parts Destroyed . | . . . Critical Strikes 2 | . 1 1 Burn 2 | . 1 1 Melee Attacks . | . . . Impact . | . . . Slashing . | . . . Piercing . | . . . Sneak Attacks . | . . . Combat Hostiles . | . . . Follow-up Attacks . | . . . Damage Inflicted 420 | . 54 366 Guns 384 | . 54 330 Cannons . | . . . Explosions 36 | . . 36 Melee . | . . . Ramming . | . . . Kinetic 159 | . 16 143 Thermal 225 | . 38 187 Explosive 36 | . . 36 Electromagnetic . | . . . Impact . | . . . Slashing . | . . . Piercing . | . . . Highest Corruption . | . . . Average Corruption . | . . . Corruption Purged . | . . . Corruption Blocked . | . . . Overload Shots . | . . . Overflow Damage . | . . . Projectiles . | . . . Explosions . | . . . Melee . | . . . Knockbacks . | . . . Impact . | . . . Kinetic . | . . . Secondary . | . . . Self-Inflicted Damage 12 | . . 12 Shots 1 | . . 1 Rammed . | . . . Targets Rammed . | . . . Kicked . | . . . Crushed . | . . . Highest Temperature 234 | . 70 234 Average Temperature 77 | . 30 87 Received Heat Transfer 169 | . . 169 Siege Activations . | . . . Robots Corrupted . | . . . Combat Hostiles . | . . . Parts Fried . | . . . Impact Corruptions . | . . . Robots Melted . | . . . Combat Hostiles . | . . . Parts Melted 5 | . . 5 Heat Transferred 814 | . 185 629 Parts Sabotaged . | . . . Parts Stolen . | . . . Parts Stripped . | . . . Power Chain Reactions . | . . . Missiles Intercepted . | . . . Alert | -11 -10 -10 ------- Run | Jun Mat Min Peak Influence 142 | . 33 142 Initial 12 | . . 12 Average 48 | . 9 62 Maximum Alert Level . | . . . Low Security (%) 100 | 100 100 100 Level 1 . | . . . Level 2 . | . . . Level 3 . | . . . Level 4 . | . . . Level 5 . | . . . High Security . | . . . Max Security . | . . . Squads Dispatched . | . . . Investigation . | . . . Extermination . | . . . Reinforcement . | . . . Assault . | . . . Garrison . | . . . Intercept . | . . . Searches Triggered . | . . . Construction Impeded . | . . . Haulers Reinforced . | . . . Active Scanning Responses . | . . . Cargo Convoy Interrupts . | . . . Stealth | -11 -10 -10 --------- Run | Jun Mat Min Distress Signals . | . . . Communications Jammed . | . . . Distress Signals . | . . . Times Spotted 16 | . 2 14 Peak Tracking Total 7 | . 1 7 Tactical Retreats . | . . . Traps | -11 -10 -10 ------- Run | Jun Mat Min Traps Triggered . | . . . Indirectly . | . . . Trap Hack Attempts . | . . . Triggered . | . . . Disarmed . | . . . Reprogrammed . | . . . Reused . | . . . Traps Extracted . | . . . Installed . | . . . Triggered . | . . . Machines | -11 -10 -10 ---------- Run | Jun Mat Min Machines Disabled . | . . . Max in Single Turn . | . . . Machines Repaired . | . . . Machines Sabotaged . | . . . Overloaded Fab Kills . | . . . Hacking | -11 -10 -10 --------- Run | Jun Mat Min Machines Accessed 1 | . 1 . Terminals 1 | . 1 . Fabricators . | . . . Repair Stations . | . . . Recycling Units . | . . . Scanalyzers . | . . . Garrison Access . | . . . Total Hacks 5 | . 5 . Successful 3 | . 3 . Failed 1 | . 1 . Catastrophic . | . . . Database Lockouts 1 | . 1 . Manual 6 | . 6 . Terminals 5 | . 5 . Fabricators . | . . . Repair Stations . | . . . Recycling Units . | . . . Scanalyzers . | . . . Garrison Access . | . . . Terminal Hacks 1 | . 1 . Robot Analysis 1 | . 1 . Fabricator Hacks . | . . . Repair Station Hacks . | . . . Recycling Unit Hacks . | . . . Scanalyzer . | . . . Garrison Access Hacks . | . . . Unauthorized Hacks 2 | . 2 . Terminals 2 | . 2 . Botnet 1 | . 1 . Operators 1 | . 1 . Fabricators . | . . . Repair Stations . | . . . Recycling Units . | . . . Scanalyzers . | . . . Garrison Access . | . . . Data Cores Recovered . | . . . Used . | . . . Hacking Detections 1 | . 1 . Full Trace Events . | . . . Feedback Events . | . . . Feedback Blocked . | . . . Robot Schematics Acquired . | . . . Robots Built . | . . . Authchips . | . . . Time . | . . . Total Robot Build Rating . | . . . Part Schematics Acquired . | . . . Parts Built . | . . . Authchips . | . . . Time . | . . . Total Part Build Rating . | . . . Parts Repaired . | . . . Time . | . . . Parts Recycled . | . . . Recycled Matter . | . . . Retrieved Matter . | . . . Retrieved Components . | . . . Parts Scanalyzed . | . . . Part Schematics Acquired . | . . . Parts Damaged . | . . . Bothacking | -11 -10 -10 ------------ Run | Jun Mat Min Used RIF Installer . | . . . Robots Hacked . | . . . Non-combat . | . . . Combat . | . . . Robot Hacks Applied . | . . . Relay Couplers Released . | . . . Fabnet Peak Effective % . | . . . Robots Rewired . | . . . Allies Hacked . | . . . Hacks Repelled . | . . . Allies | -11 -10 -10 -------- Run | Jun Mat Min Total Allies 3 | . . 3 Largest Group 3 | . . 3 Highest-Rated Group 40 | . . 40 Highest-Rated Ally 16 | . . 16 Total Orders . | . . . Ally Attacks 5 | . . 5 Total Damage 70 | . . 70 Kills . | . . . Allies Corrupted . | . . . Allies Melted . | . . . Intel | -11 -10 -10 ------- Run | Jun Mat Min Robot Analysis Total 1 | . 1 . Derelict Logs Recovered 2 | . . 2 Drone Launches . | . . . Drone Recoveries . | . . . Exploration | -11 -10 -10 ------------- Run | Jun Mat Min Turns Passed 854 | 73 150 631 Spaces Moved 620 | 49 113 458 Core 6 | 5 . 1 Treads . | . . . Legs 614 | 44 113 457 Wheels . | . . . Hover . | . . . Flight . | . . . Fastest Speed 50 | 50 120 120 Average Speed 119 | 112 120 120 Slowest Speed 200 | 120 120 200 Overloaded Moves . | . . . Propulsion Burnouts . | . . . Robots Hopped . | . . . Cave-ins Triggered . | . . . Exploration Rate (%) 35 | 3 21 82 Regions Visited 2 Branch Regions 1 Pre-discovered Areas 1 | . . 1 Known Exits Taken . | . . . Unknown Exits Taken 2 | 1 1 . Scrap Searched 1 | . . 1 Spaces Dug . | . . . Terrain Destroyed 7 | . . 7 Melee . | . . . Projectile . | . . . AOE 7 | . . 7 Terrain Rammed . | . . . Walls Destroyed . | . . . Machines Disabled . | . . . Actions | -11 -10 -10 --------- Run | Jun Mat Min Total 682 | 66 120 496 Wait . | . . . Move 618 | 48 112 458 Hop . | . . . Pick Up 19 | 12 3 4 Fast Attach 1 | . . 1 Attach 8 | 6 1 1 Detach . | . . . Swap 1 | . . 1 Drop 5 | . . 5 Fire 30 | . 4 26 Melee . | . . . Ram . | . . . Kick . | . . . Crush . | . . . Escape Stasis . | . . . Rewire . | . . . Trap . | . . . Miscellaneous . | . . . Route ------- -11/Junkyard -10/Materials -10/Mines (discovered 2 exits: [*Mat x2]) History --------- Turn | Location | Event 3 | -11/Junkyard | Discovered new exit (range 16) 74 | -11/Junkyard | Entered Materials 175 | -10/Materials | Discovered new exit (range 12) 182 | -10/Materials | Central database locked down 224 | -10/Materials | Entered Mines 313 | -10/Mines | Build established: Mutant 579 | -10/Mines | Discovered new exit (range 5) 593 | -10/Mines | Assisted by bots powering up and referring to "LRC-V3" 652 | -10/Mines | Learned location of Zion (-6) 653 | -10/Mines | Discovered new exit (range 9) 656 | -10/Mines | Learned Materials stockpile data 670 | -10/Mines | Assembled infested the area 722 | -10/Mines | Core integrity fell below 50% 849 | -10/Mines | Core integrity fell below 20% 855 | -10/Mines | Destroyed by as-31235 with Assembled Heavy Rifle Last Messages --------------- 00652_ Acquired derelict log, extracted data. World map updated: -6/Zion. 00653_ EXIT=FOUND 00656_ Acquired derelict log, extracted data. Data stored: Materials stockpile data. 00670_ ALERT: Infestation in the mines, dispatching Demolisher response squad. 00690_ C-30 ARC bursts open, deploying its payload. 00690_ D-53 Grenadier unfolds itself. 00719_ The unstable cave ceiling collapses. 00719_ Ion Engine destroyed. 00721_ as-36481 destroyed. 00726_ as-76123 destroyed. 00726_ as-97818 destroyed. 00726_ as-92729 destroyed. 00836_ Aluminum Leg destroyed. 00838_ Critical hit (Destroy). 00838_ Aluminum Leg destroyed. 00844_ Lgt. Assault Rifle destroyed. 00852_ Med. Laser destroyed. Map ----- +----------------------------------------------------+ | ??## ##???######### ## #??????? | | ???####????????????# #??????? | | ????????###????????####### ######## | | ???????## ##?????????????# | | ???????# ###???????????# """ | | ???????# ##??????????# """ ######## | | ???????# ###????????# """ ##????? | | ???##### ##???????## #????? | | ??## ## ##???????## ###??? | | ??# ## ##???????# = ##?# | | ??# #### #???????# % | | ??## #??## ##??????# | | ???# #??## ##?????# # % | | ???# #??# #?????## ## | | ???# ##?## #??????##### | | ???## ##?## #????????## | | ????#######?## ##????????# #### | | ???????????## ######?????????# #???## | | ?????####### ##?????????????## #????? | | ????## ##????????????## ##????? | | ????# ##??????????## ##?????? | | ???## #????#?##### #??????? | | ???# ### ##?# # # #???###? | | ??# ##?## ### ##??# ## | | ??# #???# a ###??# # | | ??# #???## @ ## #####???# # | | ??# ##????##### a #####??????# #? | | ??# ##?????????## ###???#####?# #??? | | ??####???????????# ##????## ## #???? | | ?????????????????## ##?????# #????? | | ??????????????????# #??????# #?????? | | ??????????????????# #??????## ###?????? | | ??????????????????#[#???????## ## #???????? | | ??????????????????#=#????????# ## #???????? | | ??????????????????#%########## ## #???????? | | ??????????????????#=## # ## ###?????? | | ??????????????????#*## #?????? | | ????????????????### ## """ ###### #?????? | | ????????????????# !| """ #????# ####### | | ????????????????# / ! """ #????# | | ????????????????# #### #????######### | | ????????#######?# #??# #????????????? | | ????????# ### #??#########????????????? | | ????????#""" %% ! #???????????????????????? | | ????????#""" #####???????????????????????? | | ????????#""" #???????????????????????????? | | ????????# #???????????????????????????? | | ????????# #???????????????????????????? | | ????????# #???????????????????????????? | | ????????#######???????????????????????????? | +----------------------------------------------------+ Best States ------------- Heat Dissipation 35 Energy Generation 10 Energy Capacity 250 Matter Stores 300 Matter Capacity 300 Sight Range 16 Terrain Scan Density 10 Additional Mass Support 6 Evasion (%) 55 Item Schematics ----------------- None Robot Schematics ------------------ None Fabricated ------------ Nothing Alien Tech Used ----------------- None Achievements -------------- None Challenges ------------ None Game ------ Seed GatlingMicrowarpDetonator Manual? 0 Play Time 00:13:13 Cumulative 61.9 hours Start 2023.10.12 @ 18:15:20 End 2023.10.12 @ 18:24:08 Sessions 1 Manual Loads 0 Difficulty Rogue Special Mode None Game No. 81 Rogue 65 Adventurer 9 Explorer 7 Win Type - Total 4 Types 4/0/0/0/0/0/0/0/0 Lore% 18 Gallery% 42 Achievement% 31 Wizard Run 0 Options --------- ASCII 0 Keyboard 0 Movement Mouse Keybinds 0 Fullscreen 1 Font 32/Terminus Map View 63x52 Tactical HUD 1 Map Filters NONE Filters NONE Steam 1 RUN: c4cdc8a6-4012-4d62-83ca-0fffd686af34